bitfinex/quotes_SOLUSD_20241122
["timestamp","ask_amount","ask_price","bid_price","bid_amount"]
[1732281608513,1.5,255.82,255.77,22.2313]
[1732281609023,23.0060903,255.87,255.77,41.2373903]
[1732281609524,1.5,255.85,255.77,41.2373903]
[1732281609712,1.5,255.84,255.77,22.2313]
[1732281609899,21.5060903,255.85,255.77,15.8116]
[1732281610101,23.0060903,255.89,255.79,19.0060903]
[1732281610406,23.0060903,255.89,255.77,15.8116]
[1732281610407,1.5,255.91,255.84,19.0060903]
[1732281610605,1.5,255.93,255.86,19.0060903]
[1732281610917,1.5,255.92,255.88,19.0060903]
[1732281611214,2.5,256.07,255.77,15.8116]
[1732281611215,1.5,255.96,255.9,19.0060903]
[1732281611418,1.5,255.98,255.92,19.0060903]
[1732281611820,1.5,255.96,255.92,19.0060903]
[1732281612017,1.5,255.98,255.92,19.0060903]
[1732281612198,1.5,255.96,255.9,19.0060903]
[1732281612618,1.5,255.98,255.88,24.776884]
[1732281612804,1.5,255.98,255.94,19.0060903]
[1732281613013,1.5,256.04,255.96,19.0060903]
[1732281613305,1.5,256.04,255.99,19.0060903]
[1732281613503,1.5,256.04,256.01,19.0060903]
[1732281613698,1.5,256.04,255.96,23.776884]
[1732281613699,1.5,256.09,256.03,19.0060903]
[1732281614118,1.5,256.09,255.97,1.0]
[1732281614325,1.5,256.12,256.05,19.0060903]
[1732281614815,1.5,256.15,256.09,19.0060903]
[1732281615331,1.5,256.15,256.12,19.0060903]
[1732281615514,1.5,256.15,256.06,6.0651]
[1732281615515,1.5,256.08,256.06,6.0651]
[1732281615824,1.5,256.08,256.02,19.0060903]
[1732281616221,1.5,256.06,256.02,19.0060903]
[1732281616419,1.5,256.06,255.99,19.0060903]
[1732281616716,1.5,256.04,255.97,6.0651]
[1732281617024,1.5,255.94,255.88,6.078]
[1732281617202,1.5,255.92,255.86,35.2516903]
[1732281617398,1.5,255.9,255.86,16.2456]
[1732281617704,1.5,255.9,255.8,19.0060903]
[1732281617705,1.5,255.88,255.8,19.0060903]
[1732281617904,1.5,255.84,255.79,6.5713]
[1732281618323,20.5060903,255.9,255.8,19.0060903]
[1732281618531,20.5060903,255.9,255.82,19.0060903]
[1732281618738,1.5,255.81,255.7,16.9436]
[1732281619021,1.5,255.87,255.74,1.0]
[1732281619239,1.5,255.87,255.71,31.49654128]
[1732281619240,1.5,255.87,255.76,1.0]
[1732281619535,1.5,255.87,255.79,30.91022757]
[1732281619832,34.91022757,255.9,255.81,30.91022757]
[1732281620015,1.5,255.88,255.79,30.91022757]
[1732281620213,1.5,255.91,255.83,30.91022757]
[1732281620624,1.5,255.9,255.83,30.91022757]
[1732281620824,32.41022757,255.9,255.81,31.91022757]
[1732281621210,1.5,255.9,255.83,30.91022757]
[1732281621833,30.91022757,255.92,255.72,1.58614881]
[1732281621834,30.91022757,255.86,255.72,1.58614881]
[1732281622016,32.41022757,255.86,255.77,1.0]
[1732281622208,32.41022757,255.86,255.78,30.91022757]
[1732281622209,1.5,255.86,255.78,30.91022757]
[1732281622731,4.0,255.91,255.82,30.91022757]
[1732281623039,1.5,255.91,255.84,30.91022757]
[1732281623206,1.5,255.89,255.82,30.91022757]
[1732281623915,1.5,255.93,255.84,30.91022757]
[1732281624133,1.5,255.93,255.86,30.91022757]
[1732281624329,1.5,255.93,255.88,30.91022757]
[1732281625136,34.81502757,256.1,255.71,30.91022757]
[1732281625137,1.5,255.9,255.84,30.91022757]
[1732281625317,32.41022757,255.9,255.81,30.91022757]
[1732281625847,32.41022757,255.9,255.6,19.3723862]
[1732281625848,2.5,255.55,255.35,324.80086931]
[1732281626132,61.82045514,255.82,255.35,324.80086931]
[1732281626133,30.91022757,255.54,255.43,30.91022757]
[1732281626341,2.5,255.8,255.35,331.10955781]
[1732281626342,30.91022757,255.5,255.39,30.91022757]
[1732281626833,30.91022757,255.58,255.4,0.58692031]
[1732281626834,30.91022757,255.48,255.4,0.58692031]
[1732281627026,30.91022757,255.44,255.35,324.80086931]
[1732281627229,30.91022757,255.4,255.35,324.80086931]
[1732281627429,30.91022757,255.36,255.35,324.80086931]
[1732281627813,30.91022757,255.36,255.35,323.80086931]
[1732281628317,35.91022757,255.36,255.35,323.80086931]
[1732281628716,66.82045514,255.36,255.35,323.80086931]
[1732281628924,35.91022757,255.36,255.35,240.53871274]
[1732281630118,30.91022757,255.36,255.35,240.53871274]
[1732281630417,30.91022757,255.42,255.35,240.53871274]
[1732281631334,30.91022757,255.36,255.35,240.53871274]
[1732281632737,5.0,255.37,255.35,240.53871274]
[1732281632932,2.5,255.36,255.35,240.53871274]
[1732281633236,30.91022757,255.38,255.35,240.53871274]
[1732281633426,2.5,255.4,255.35,240.53871274]
[1732281633828,33.41022757,255.4,255.35,240.53871274]
[1732281634240,30.91022757,255.4,255.35,240.53871274]
[1732281634540,2.5,255.42,254.77,11.66743251]
[1732281634541,5.0,255.01,254.77,11.66743251]
[1732281634748,35.91022757,255.01,254.78,0.58833084]
[1732281635040,35.91022757,255.01,254.63,6.1103]
[1732281635041,35.91022757,255.01,254.6,15.3983]
[1732281635337,35.91022757,255.01,254.81,30.91022757]
[1732281635523,35.91022757,255.01,254.87,30.91022757]
[1732281636042,35.91022757,255.01,254.89,30.91022757]
[1732281636217,5.0,255.13,254.99,30.91022757]
[1732281636415,11.0116,255.28,255.06,30.91022757]
[1732281636416,2.5,255.18,255.06,30.91022757]
[1732281636792,2.5,255.33,255.06,30.91022757]
[1732281636793,2.5,255.23,255.13,30.91022757]
[1732281637046,2.5,255.23,255.15,30.91022757]
[1732281637221,30.91022757,255.27,255.15,30.91022757]
[1732281637553,2.5,255.3,255.15,30.91022757]
[1732281637554,2.5,255.25,255.15,30.91022757]
[1732281637842,2.5,255.3,255.14,23.776884]
[1732281637843,2.5,255.27,255.19,30.91022757]
[1732281638340,30.91022757,255.32,255.23,30.91022757]
[1732281638634,33.41022757,255.32,255.21,30.91022757]
[1732281639033,2.5,255.3,255.21,30.91022757]
[1732281639547,2.5,255.32,255.23,30.91022757]
[1732281639718,2.5,255.32,255.25,30.91022757]
[1732281640242,33.41022757,255.26,255.17,20.0]
[1732281640857,33.41022757,255.26,255.18,30.91022757]
[1732281641033,2.5,255.26,255.18,30.91022757]
[1732281641349,2.5,255.33,255.24,30.91022757]
[1732281641553,2.5,255.35,255.19,51.49777574]
[1732281641554,5.0,255.35,255.29,30.91022757]
[1732281641757,2.5,255.38,255.31,30.91022757]
[1732281642151,2.5,255.27,255.22,30.91022757]
[1732281642857,2.5,255.27,255.12,15.3582]
[1732281642858,2.5,255.33,255.24,30.91022757]
[1732281643054,2.5,255.33,255.26,30.91022757]
[1732281643349,33.41022757,255.34,255.26,30.91022757]
[1732281643350,2.5,255.31,255.26,30.91022757]
[1732281643858,5.0,255.31,255.14,23.776884]
[1732281644058,5.0,255.31,255.22,20.0]
[1732281644059,2.5,255.29,255.22,20.0]
[1732281644290,2.5,255.25,255.19,30.91022757]
[1732281644637,2.5,255.25,255.21,30.91022757]
[1732281645340,2.5,255.27,255.21,30.91022757]
[1732281645538,2.5,255.29,255.25,30.91022757]
[1732281645742,5.0,255.33,255.25,30.91022757]
[1732281646050,2.5,255.33,255.25,30.91022757]
[1732281646448,2.5,255.33,255.28,30.91022757]
[1732281646955,2.5,255.3,255.24,30.91022757]
[1732281647158,5.0,255.3,255.22,30.91022757]
[1732281647347,2.5,255.3,255.24,30.91022757]
[1732281647946,2.5,255.3,255.0,11.74835294]
[1732281647947,2.5,255.01,255.0,11.74835294]
[1732281648151,2.5,255.05,255.0,11.74835294]
[1732281648456,2.5,255.1,255.0,11.74835294]
[1732281648637,2.5,255.07,255.0,11.74835294]
[1732281648839,0.58778173,255.28,255.01,0.58796369]
[1732281648840,2.5,255.14,255.01,0.58796369]
[1732281649145,2.5,255.16,255.08,30.91022757]
[1732281649345,2.5,255.18,255.12,30.91022757]
[1732281649746,2.5,255.21,255.14,30.91022757]
[1732281649960,2.5,255.22,255.16,30.91022757]
[1732281650266,2.5,255.26,255.2,30.91022757]
[1732281650447,18.3694,255.46,255.2,30.91022757]
[1732281650448,2.5,255.27,255.2,30.91022757]
[1732281650845,2.5,255.29,255.2,30.91022757]
[1732281651054,2.5,255.26,255.21,0.58750034]
[1732281651340,2.5,255.26,255.18,30.91022757]
[1732281651539,2.5,255.24,255.16,30.91022757]
[1732281651762,2.5,255.26,255.18,30.91022757]
[1732281652339,2.5,255.28,255.19,20.0]
[1732281652538,5.0,255.32,255.22,30.91022757]
[1732281652740,2.5,255.31,255.25,30.91022757]
[1732281652946,2.5,255.37,255.29,30.91022757]
[1732281653261,5.0,255.37,255.29,30.91022757]
[1732281653647,35.91022757,255.39,255.3,20.0]
[1732281653964,33.41022757,255.39,255.3,20.0]
[1732281654170,33.41022757,255.41,255.32,20.0]
[1732281654466,33.41022757,255.41,255.13,6.42445919]
[1732281654467,30.91022757,255.33,254.95,147.2716892]
[1732281654645,30.91022757,255.04,254.93,30.91022757]
[1732281654852,2.5,255.05,254.95,30.91022757]
[1732281655150,5.0,255.07,254.99,30.91022757]
[1732281655353,2.5,255.04,254.99,30.91022757]
[1732281655567,2.5,255.04,254.86,6.0068]
[1732281655568,2.5,255.06,255.01,30.91022757]
[1732281655871,5.0,255.08,255.01,30.91022757]
[1732281656069,2.5,255.12,255.03,30.91022757]
[1732281656272,2.5,255.16,255.09,30.91022757]
[1732281656463,5.0,255.18,255.11,30.91022757]
[1732281656670,5.0,255.18,255.09,30.91022757]
[1732281656867,2.5,255.14,255.09,30.91022757]
[1732281657051,2.5,255.12,255.1,20.0]
[1732281657456,2.5,255.12,255.06,20.0]
[1732281657765,0.58778173,255.27,254.95,15.8327]
[1732281657766,2.5,255.08,254.95,15.8327]
[1732281657973,30.91022757,255.19,254.95,15.8327]
[1732281657974,5.0,255.11,255.02,30.91022757]
[1732281658274,5.0,255.11,254.95,15.8327]
[1732281658275,2.5,255.11,255.06,30.91022757]
[1732281658452,2.5,255.14,255.06,30.91022757]
[1732281658453,2.5,255.13,255.06,30.91022757]
[1732281658652,2.5,255.14,255.06,30.91022757]
[1732281658875,2.5,255.15,255.08,30.91022757]
[1732281659076,2.5,255.15,254.95,15.8327]
[1732281659077,2.5,255.19,255.13,20.0]
[1732281659250,5.0,255.19,255.13,20.0]
[1732281659451,2.5,255.2,255.15,20.0]
[1732281659876,2.5,255.24,255.18,30.91022757]
[1732281660181,5.0,255.31,255.23,20.0]
[1732281660356,5.0,255.33,255.26,30.91022757]
[1732281660677,2.5,255.35,255.3,30.91022757]
[1732281660879,2.5,255.37,255.31,20.0]
[1732281661177,15.639301,255.59,255.39,2.5]
[1732281661381,30.91022757,255.45,255.43,2.5]
[1732281661589,30.91022757,255.49,255.44,2.5]
[1732281661882,30.91022757,255.52,255.51,2.5]
[1732281662256,0.88588426,255.52,255.51,2.5]
[1732281662589,0.88588426,255.52,255.49,2.5]
[1732281662590,30.91022757,255.58,255.55,2.5]
[1732281662767,30.91022757,255.58,255.57,2.5]
[1732281662967,30.91022757,255.58,255.5,20.0]
[1732281662968,30.91022757,255.58,255.51,2.5]
[1732281663275,30.91022757,255.56,255.55,2.5]
[1732281663478,30.91022757,255.71,255.53,2.5]
[1732281663479,30.91022757,255.58,255.53,2.5]
[1732281663656,30.91022757,255.6,255.59,2.5]
[1732281664079,30.91022757,255.62,255.59,5.0]
[1732281664258,30.91022757,255.62,255.58,2.5]
[1732281664460,61.82045514,255.59,255.45,2.5]
[1732281664784,30.91022757,255.46,255.43,2.5]
[1732281664960,30.91022757,255.59,255.36,2.5]
[1732281664961,30.91022757,255.44,255.36,2.5]
[1732281665153,30.91022757,255.4,255.36,2.5]
[1732281665353,30.91022757,255.42,255.38,2.5]
[1732281665572,30.91022757,255.44,255.41,2.5]
[1732281665777,30.91022757,255.46,255.4,2.5]
[1732281665965,30.91022757,255.48,255.44,2.5]
[1732281666359,30.91022757,255.5,255.49,2.5]
[1732281666559,30.91022757,255.5,255.43,2.5]
[1732281666799,30.91022757,255.47,255.43,2.5]
[1732281667156,30.91022757,255.45,255.41,2.5]
[1732281667358,30.91022757,255.43,255.39,2.5]
[1732281667661,30.91022757,255.43,255.34,2.5]
[1732281667662,30.91022757,255.4,255.27,2.5]
[1732281667860,30.91022757,255.3,255.26,2.5]
[1732281668061,30.91022757,255.28,255.21,2.5]
[1732281668258,30.91022757,255.26,255.21,2.5]
[1732281668460,30.91022757,255.31,255.25,2.5]
[1732281668663,30.91022757,255.31,255.09,2.5]
[1732281668664,30.91022757,255.37,255.32,2.5]
[1732281668871,30.91022757,255.35,255.27,2.5]
[1732281669075,30.91022757,255.35,255.29,2.5]
[1732281669268,30.91022757,255.37,255.36,2.5]
[1732281669464,30.91022757,255.41,255.38,2.5]
[1732281669691,30.91022757,255.41,255.33,33.41022757]
[1732281669692,30.91022757,255.41,255.4,2.5]
[1732281669990,30.91022757,255.48,255.44,5.0]
[1732281670190,30.91022757,255.5,255.46,5.0]
[1732281670485,30.91022757,255.52,255.49,2.5]
[1732281670695,30.91022757,255.5,255.45,2.5]
[1732281670868,30.91022757,255.5,255.47,2.5]
[1732281671069,30.91022757,255.47,255.38,5.0]
[1732281671389,30.91022757,255.47,255.46,2.5]
[1732281671573,30.91022757,255.49,255.44,2.5]
[1732281671882,30.91022757,255.58,255.44,2.5]
[1732281672076,30.91022757,255.45,255.39,2.5]
[1732281672383,30.91022757,255.44,255.4,2.5]
[1732281672584,30.91022757,255.48,255.47,2.5]
[1732281672966,30.91022757,255.52,255.47,2.5]
[1732281673168,30.91022757,255.52,255.49,2.5]
[1732281673392,10.243,255.64,255.43,20.0]
[1732281673393,30.91022757,255.5,255.43,20.0]
[1732281673574,30.91022757,255.58,255.41,20.0]
[1732281673897,30.91022757,255.42,255.4,2.5]
[1732281674066,30.91022757,255.58,255.4,2.5]
[1732281674067,30.91022757,255.44,255.4,2.5]
[1732281674271,30.91022757,255.46,255.4,2.5]
[1732281674483,30.91022757,255.46,255.39,2.5]
[1732281674794,30.91022757,255.46,255.4,2.5]
[1732281675286,30.91022757,255.46,255.41,2.5]
[1732281675492,30.91022757,255.42,255.38,2.5]
[1732281675704,30.91022757,255.42,255.4,2.5]
[1732281675868,30.91022757,255.42,255.38,2.5]
[1732281676069,30.91022757,255.39,255.38,2.5]
[1732281676578,30.91022757,255.41,255.38,2.5]
[1732281676893,30.91022757,255.49,255.44,2.5]
[1732281677075,30.91022757,255.53,255.45,2.5]
[1732281677269,30.91022757,255.49,255.44,2.5]
[1732281677469,30.91022757,255.45,255.38,2.5]
[1732281677673,30.91022757,255.41,255.38,2.5]
[1732281677877,30.91022757,255.39,255.38,2.5]
[1732281678390,30.91022757,255.41,255.38,2.5]
[1732281679193,30.91022757,255.39,255.38,2.5]
[1732281679374,30.91022757,255.39,255.31,2.5]
[1732281679572,30.91022757,255.36,255.31,2.5]
[1732281679775,30.91022757,255.33,255.31,2.5]
[1732281679970,30.91022757,255.33,255.29,5.0]
[1732281680378,30.91022757,255.33,255.29,2.5]
[1732281680573,30.91022757,255.33,255.29,5.0]
[1732281680803,30.91022757,255.33,255.06,8.88215471]
[1732281681005,2.5,254.95,254.79,30.91022757]
[1732281681168,30.91022757,254.91,254.8,0.5883173]
[1732281681372,30.91022757,254.93,254.83,30.41022757]
[1732281681598,30.91022757,254.95,254.84,0.58830955]
[1732281681832,30.91022757,255.07,254.8,30.91022757]
[1732281681833,30.91022757,254.91,254.8,30.91022757]
[1732281682093,35.91022757,254.91,254.8,30.91022757]
[1732281682300,33.41022757,254.89,254.78,30.91022757]
[1732281682680,30.91022757,254.89,254.78,30.91022757]
[1732281682883,30.91022757,254.9,254.79,30.91022757]
[1732281683068,2.5,254.91,254.81,30.91022757]
[1732281683269,2.5,254.99,254.9,30.91022757]
[1732281683471,2.5,254.96,254.9,30.91022757]
[1732281683695,2.5,254.96,254.82,1.48535835]
[1732281683696,33.41022757,254.94,254.84,30.91022757]
[1732281683900,30.91022757,255.06,254.84,30.91022757]
[1732281683901,2.5,254.89,254.84,30.91022757]
[1732281684078,2.5,254.93,254.86,30.91022757]
[1732281684388,2.5,254.97,254.9,30.91022757]
[1732281684584,5.0,254.97,254.9,30.91022757]
[1732281684997,5.0,254.97,254.81,0.58828182]
[1732281684998,5.0,255.02,254.94,30.91022757]
[1732281685193,2.5,255.03,254.98,30.91022757]
[1732281685497,2.5,255.0,254.94,30.91022757]
[1732281685800,30.91022757,255.03,254.94,30.91022757]
[1732281685801,2.5,254.99,254.95,20.0]
[1732281686001,2.5,254.98,254.93,20.0]
[1732281686479,30.91022757,254.99,254.9,30.91022757]
[1732281686480,2.5,254.96,254.91,20.0]
[1732281686679,2.0602,254.96,254.91,20.0]
[1732281687472,2.0602,254.96,254.92,30.91022757]
[1732281687676,4.5602,254.96,254.93,20.0]
[1732281688100,2.0602,254.93,254.82,0.58822131]
[1732281688299,2.5,254.92,254.85,30.91022757]
[1732281688502,2.0602,254.84,254.79,30.91022757]
[1732281688999,2.5,254.82,254.79,30.91022757]
[1732281689381,2.0602,254.82,254.79,30.91022757]
[1732281689587,4.5602,254.87,254.81,30.91022757]
[1732281689880,4.5602,254.9,254.83,30.91022757]
[1732281690077,4.5602,254.9,254.85,30.91022757]
[1732281690308,4.5602,254.88,254.83,30.91022757]
[1732281690599,2.5,254.87,254.81,30.91022757]
[1732281690797,2.0602,254.81,254.77,30.91022757]
[1732281691000,4.5602,254.81,254.77,30.91022757]
[1732281691478,2.0602,254.85,254.79,30.91022757]
[1732281691773,2.0602,254.83,254.79,30.91022757]
[1732281691975,2.0602,254.85,254.79,30.91022757]
[1732281692200,4.5602,254.83,254.79,30.91022757]
[1732281692399,2.0602,254.83,254.8,20.0]
[1732281692585,4.5602,254.83,254.78,20.0]
[1732281692785,2.0602,254.81,254.78,20.0]
[1732281692986,2.0602,254.79,254.78,20.0]
[1732281693196,4.5602,254.79,254.74,20.0]
[1732281693394,4.5602,254.77,254.73,30.91022757]
[1732281694103,2.5,254.78,254.75,30.91022757]
[1732281694319,2.0602,254.76,254.75,30.91022757]
[1732281695108,2.0602,254.74,254.73,50.91022757]
[1732281695612,2.0602,254.79,254.74,20.0]
[1732281695791,2.5,254.8,254.77,20.0]
[1732281696293,2.5,254.84,254.8,20.0]
[1732281696483,2.0602,254.85,254.81,30.91022757]
[1732281696691,2.5,254.86,254.82,20.0]
[1732281696892,4.5602,254.86,254.82,20.0]
[1732281697100,2.5,254.86,254.82,20.0]
[1732281697288,2.5,254.88,254.82,20.0]
[1732281697604,2.0602,254.85,254.84,20.0]
[1732281697807,2.5,254.86,254.84,20.0]
[1732281698107,2.0602,254.85,254.82,20.0]
[1732281698510,2.0602,254.83,254.8,20.0]
[1732281698810,33.41022757,254.86,254.8,20.0]
[1732281698988,2.5,254.81,254.8,20.0]
[1732281699812,2.5,254.81,254.71,23.776884]
[1732281700010,31.15565745,254.85,254.74,20.0]
[1732281700211,2.5,254.87,254.77,23.776884]
[1732281700412,2.5,254.87,254.78,20.0]
[1732281700614,2.5,254.87,254.8,20.0]
[1732281700906,2.5,254.87,254.81,23.776884]
[1732281701108,33.21585745,254.85,254.82,20.0]
[1732281701283,2.5,254.84,254.82,20.0]
[1732281701488,2.0602,254.85,254.68,0.4398]
[1732281701694,2.0602,254.87,254.71,20.0]
[1732281701909,2.0602,254.87,254.76,20.0]
[1732281702215,2.5,254.85,254.78,20.0]
[1732281702522,33.65565745,254.88,254.78,20.0]
[1732281702813,2.2802,254.92,254.81,23.776884]
[1732281702984,0.22,254.97,254.85,23.776884]
[1732281703300,33.21585745,255.0,254.92,20.0]
[1732281703496,31.15565745,255.0,254.92,20.0]
[1732281703705,0.22,254.98,254.92,20.0]
[1732281704383,31.37565745,254.96,254.85,20.0]
[1732281704586,31.37565745,254.96,254.84,23.776884]
[1732281704587,31.37565745,254.96,254.87,20.0]
[1732281704804,31.15565745,254.98,254.91,20.0]
[1732281705003,0.22,254.97,254.91,20.0]
[1732281705189,31.15565745,254.96,254.91,20.0]
[1732281705386,31.37565745,254.96,254.89,20.0]
[1732281705588,31.15565745,254.9,254.74,2.28]
[1732281705786,0.22,254.88,254.82,0.58837101]
[1732281706002,2.0602,254.87,254.75,0.58837435]
[1732281706196,0.22,254.88,254.77,2.28]
[1732281706397,0.22,254.88,254.78,0.58838488]
[1732281706793,0.22,254.91,254.78,0.58838488]
[1732281707204,0.22,254.9,254.79,2.28]
[1732281707406,2.2802,254.95,254.79,2.28]
[1732281707714,0.22,254.93,254.84,20.0]
[1732281708019,0.22,254.96,254.86,20.0]
[1732281708191,0.22,254.93,254.86,20.0]
[1732281708516,0.22,254.96,254.9,20.0]
[1732281708685,0.22,254.97,254.9,20.0]
[1732281709012,0.22,255.01,254.92,20.0]
[1732281709200,33.43585745,255.04,254.96,20.0]
[1732281709703,0.22,255.01,254.96,20.0]
[1732281709915,0.22,255.01,254.9,2.28]
[1732281710117,0.22,255.01,254.92,20.0]
[1732281710292,0.22,255.01,254.94,20.0]
[1732281710694,0.22,255.03,254.96,20.0]
[1732281711716,31.37565745,255.0,254.98,20.0]
[1732281712193,2.0602,254.99,254.93,23.776884]
[1732281712514,31.15565745,254.97,254.94,20.0]
[1732281712808,31.15565745,255.06,254.82,7.88292998]
[1732281712809,2.0602,254.94,254.82,7.88292998]
[1732281713008,2.0602,254.94,254.79,2.28]
[1732281713516,2.0602,254.94,254.8,0.58827261]
[1732281713704,0.22,254.95,254.81,2.28]
[1732281713900,0.22,254.95,254.89,31.129936]
[1732281714103,0.22,254.95,254.91,20.0]
[1732281714307,0.22,254.97,254.93,20.0]
[1732281714613,2.5,255.16,254.91,20.0]
[1732281714614,0.22,254.99,254.95,20.0]
[1732281714822,0.22,254.99,254.98,23.776884]
[1732281714998,0.22,255.0,254.99,20.0]
[1732281715922,31.349936,255.0,254.92,20.0]
[1732281716094,31.349936,255.0,254.95,23.776884]
[1732281716295,33.410136,255.0,254.96,20.0]
[1732281716921,31.349936,254.97,254.96,20.0]
[1732281717304,0.22,254.94,254.92,20.0]
[1732281717608,0.22,254.92,254.87,31.129936]
[1732281718894,0.22,254.92,254.85,31.129936]
[1732281719100,0.22,254.92,254.89,23.776884]
[1732281719520,0.22,254.92,254.9,20.0]
[1732281719700,0.22,254.92,254.91,43.776884]
[1732281721801,0.22,254.92,254.91,74.90682]
[1732281722298,0.22,254.92,254.91,43.776884]
[1732281723123,0.22,254.93,254.92,20.0]
[1732281723326,0.22,254.93,254.92,43.776884]
[1732281723531,0.22,255.02,254.96,20.0]
[1732281723731,33.190136,255.04,254.99,31.129936]
[1732281723732,0.22,255.04,254.99,31.129936]
[1732281724021,0.22,255.01,255.0,20.0]
[1732281724336,0.22,255.01,255.0,43.776884]
[1732281724529,2.0602,255.03,254.97,31.129936]
[1732281724530,0.22,255.0,254.98,20.0]
[1732281724932,2.0602,254.74,254.72,2.9352458]
[1732281725236,2.0602,254.72,254.65,7.80655805]
[1732281725424,0.22,254.72,254.65,7.80655805]
[1732281725729,2.0602,254.71,254.65,7.80655805]
[1732281725927,33.410136,254.74,254.65,7.80655805]
[1732281726133,31.349936,254.74,254.65,7.80655805]
[1732281726319,2.0602,254.75,254.66,31.129936]
[1732281726800,2.0602,254.75,254.64,0.5887868]
[1732281726801,2.0602,254.76,254.68,31.129936]
[1732281727203,2.2802,254.76,254.68,31.129936]
[1732281727413,33.410136,254.76,254.68,31.129936]
[1732281727618,2.0602,254.74,254.69,20.0]
[1732281727819,2.0602,254.74,254.67,20.0]
[1732281728106,0.22,254.76,254.69,20.0]
[1732281728331,0.22,254.74,254.69,20.0]
[1732281728624,0.22,254.71,254.64,39.10785179]
[1732281728816,2.2802,254.73,254.64,31.129936]
[1732281729033,0.22,254.71,254.59,18.3815]
[1732281729222,0.22,254.7,254.6,0.58872854]
[1732281729531,0.22,254.74,254.6,0.58872854]
[1732281729708,0.22,254.76,254.63,2.28]
[1732281730030,0.58802785,254.9,254.63,2.28]
[1732281730031,2.0602,254.8,254.65,2.28]
[1732281730208,33.46708791,254.83,254.68,2.28]
[1732281730410,0.22,254.83,254.7,23.776884]
[1732281730633,0.22,254.83,254.72,23.776884]
[1732281730932,0.22,254.83,254.74,23.776884]
[1732281731146,0.22,254.83,254.76,23.776884]
[1732281731314,0.22,254.81,254.79,20.0]
[1732281731833,31.40688791,254.83,254.79,20.0]
[1732281732019,31.40688791,254.81,254.79,20.0]
[1732281732327,0.22,254.78,254.71,7.84964924]
[1732281732533,2.0602,254.77,254.72,20.0]
[1732281733035,0.22,254.78,254.66,20.0]
[1732281733215,0.22,254.78,254.67,0.58857791]
[1732281733534,0.22,254.82,254.69,2.28]
[1732281733712,0.22,254.82,254.7,0.58847944]
[1732281733903,0.22,254.82,254.72,20.0]
[1732281734130,0.22,254.8,254.76,20.0]
[1732281734815,0.22,254.9,254.81,23.776884]
[1732281735010,0.22,254.9,254.72,0.4398]
[1732281735011,0.22,254.86,254.85,23.776884]
[1732281735205,0.22,254.9,254.88,20.0]
[1732281735401,2.2802,254.93,254.89,23.776884]
[1732281735635,0.22,254.95,254.92,20.0]
[1732281735924,0.22,254.97,254.96,20.0]
[1732281736125,0.22,254.97,254.96,43.776884]
[1732281736320,0.22,254.99,254.96,43.776884]
[1732281736633,0.22,254.99,254.98,43.776884]
[1732281737324,0.22,255.03,254.98,43.776884]
[1732281737535,0.22,255.06,255.02,20.0]
[1732281737727,0.22,255.09,255.06,20.0]
[1732281737911,0.22,255.09,255.08,20.0]
[1732281738108,0.22,255.12,255.1,20.0]
[1732281738808,2.2802,255.2,255.12,20.0]
[1732281739021,2.0602,255.18,255.14,20.0]
[1732281739225,0.58802785,255.29,255.17,23.776884]
[1732281739226,31.18688791,255.22,255.17,23.776884]